[Event "EICC 2025"]
[Site "Eforie-Nord"]
[Date "2025.03.17"]
[Round "3.21"]
[White "Girel, Joseph"]
[Black "Yilmaz, Mustafa"]
[Result "1/2-1/2"]
[Annotator "TA"]
[ECO "E11"]
[WhiteElo "2498"]
[BlackElo "2576"]
[PlyCount "126"]
[EventDate "2025.03.14"]
[EventType "swiss"]
[EventCountry "ROU"]
[SourceTitle "playchess.com"]
[Source "ChessBase"]
[SourceQuality "1"]
[TimeControl "40/5400+30:1800+30"]

{[%evp 12,126,11,15,25,34,42,26,35,38,41,29,20,23,23,23,31,29,32,35,37,33,45,33,33,21,29,34,26,17,25,18,18,8,22,22,8,18,49,19,19,18,18,18,18,18,18,18,18,18,18,18,18,19,19,19,19,19,19,19,19,0,19,4,0,0,19,19,19,19,20,20,20,20,20,20,20,20,20,20,21,3,3,3,3,3,3,3,3,3,3,3,8,3,3,3,3,3,4,4,4,1,1,1,1,1,1,1,1,1,1,0,1,1,1,0,0]} 1. d4 {[%emt 0:00:14]} Nf6 {[%emt 0:00:08]} 2. c4 {[%emt 0:00:21]} e6 {[%emt 0:00:04]} 3. Nf3 {[%emt 0:00:24]} d5 {[%emt 0:00:04]} 4. g3 {[%emt 0:00:26]} Bb4+ {[%emt 0:00:07]} 5. Bd2 {[%emt 0:01:49]} a5 {[%emt 0:00:19]} 6. Bg2 {[%emt 0:00:29]} O-O {[%emt 0:00:57]} 7. Qc2 {[%emt 0:01:54]} c5 {[%emt 0:00:14] E11: Bogo-Indian.} 8. cxd5 {[%emt 0:00:24]} cxd4 {[%emt 0:00:10]} 9. Nxd4 {[%emt 0:00:24]} Qb6 {[%emt 0:00:14] White has an edge.} 10. e3 {[%emt 0:00:07]} exd5 {[%emt 0:00:07]} 11. a3 {[%emt 0:00:11]} Bxd2+ {[%emt 0:03:32]} 12. Nxd2 {[%emt 0:00:17]} Nc6 {[%emt 0:00:26]} 13. N2f3 {[%emt 0:00:15]} Bd7 {[%emt 0:04:52]} 14. O-O {[%emt 0:01:43]} Nxd4 $146 {[%emt 0:04:41]} (14... Rac8 15. Qb3 Qxb3 16. Nxb3 Ne4 17. Rfd1 a4 18. Nbd4 Na5 19. Ne5 Be8 20. Nf5 {1-0 Slawomir,W (2009)-Droin,A (2000) FICGS class A 000263 email 2022 (1)}) 15. Nxd4 {[%emt 0:00:22]} Rfc8 {[%emt 0:00:02]} 16. Qe2 {[%emt 0:09:45]} Rc4 {[%emt 0:01:17]} 17. Rfd1 {[%emt 0:11:22][%cal Og2d5]} Rac8 {[%emt 0:02:49]} 18. Bf1 {[%emt 0:04:31]} h5 {[%emt 0:14:23]} 19. Qe1 {[%emt 0:04:06]} R4c7 {[%emt 0:01:46]} 20. b4 {[%emt 0:04:13]} Ra8 {[%emt 0:07:55]} 21. Rac1 {[%emt 0:04:42]} axb4 {[%emt 0:11:10]} 22. Qxb4 {[%emt 0:02:10]} Qxb4 {[%emt 0:02:45]} (22... Rxc1 {simplifies} 23. Rxc1 Qxb4 24. axb4 b6) 23. axb4 {[%emt 0:00:08]} Rxc1 {[%emt 0:02:13]} 24. Rxc1 {[%emt 0:00:05]} Rc8 {[%emt 0:08:07] Prevents Rc7.} 25. Rxc8+ {[%emt 0:06:40]} Bxc8 $14 {[%emt 0:01:28][%mdl 4096] Endgame KBN-KBN. The position is equal.} 26. f3 {[%emt 0:00:08]} Kf8 {[%emt 0:00:41]} 27. h4 {[%emt 0:01:42]} Ke7 {[%emt 0:13:46]} 28. Kf2 {[%emt 0:00:19]} Bd7 {[%emt 0:04:58]} 29. Ke1 {[%emt 0:02:40]} Kd6 {[%emt 0:00:59]} 30. Kd2 {[%emt 0:01:41]} Ng8 {[%emt 0:01:54]} 31. Bd3 {[%emt 0:01:58]} Ne7 {[%emt 0:00:40]} 32. Kc3 {[%emt 0:01:16]} Ke5 {[%emt 0:01:58]} 33. Be2 {[%emt 0:01:33]} Kd6 {[%emt 0:00:14]} 34. Bd1 {[%emt 0:01:43]} Be8 {[%emt 0:01:10]} 35. Bc2 {[%emt 0:01:51]} Bd7 {[%emt 0:00:12]} 36. Ne2 {[%emt 0:03:20]} Bf5 {[%emt 0:01:22]} 37. Ba4 {[%emt 0:01:17]} Bd7 {[%emt 0:03:51]} 38. Bc2 {[%emt 0:01:22]} Bf5 {[%emt 0:00:11]} 39. Bb3 {[%emt 0:00:50]} Be6 {[%emt 0:02:13]} 40. Nd4 {[%emt 0:02:35]} Bd7 {[%emt 0:00:17]} 41. Kd3 {[%emt 0:32:56]} Ke5 {[%emt 0:14:28]} 42. Bd1 {[%emt 0:00:00] Hoping for f4+.} Kd6 {[%emt 0:00:33]} 43. Be2 {[%emt 0:00:00]} Bf5+ {[%emt 0:01:21]} 44. Kd2 {[%emt 0:00:00]} Bd7 {[%emt 0:00:08]} 45. Bd1 {[%emt 0:00:00]} Be8 {[%emt 0:00:45]} 46. f4 {[%emt 0:00:00]} g6 {[%emt 0:01:23]} 47. g4 {[%emt 0:00:00]} hxg4 {[%emt 0:00:30]} 48. Bxg4 {[%emt 0:00:00]} Bd7 {[%emt 0:04:01]} 49. Bf3 {[%emt 0:00:00]} Kc7 {[%emt 0:11:13]} 50. Kc3 {[%emt 0:00:00]} Kd6 {[%emt 0:00:01]} 51. Be2 {[%emt 0:00:00]} Ng8 {[%emt 0:00:43]} 52. h5 {[%emt 0:00:00]} gxh5 {[%emt 0:00:24]} 53. Bxh5 {[%emt 0:00:00]} f6 {[%emt 0:00:14]} 54. Bd1 {[%emt 0:00:00]} Ne7 {[%emt 0:00:53]} 55. Bc2 {[%emt 0:00:00]} Be8 {[%emt 0:01:11]} 56. Nf5+ {[%emt 0:00:00]} Nxf5 {[%emt 0:00:17]} 57. Bxf5 $11 {[%emt 0:00:00] KB-KB} Bh5 {[%emt 0:01:51]} 58. Kd4 {[%emt 0:00:00]} b6 {[%emt 0:00:17]} 59. Bc8 {[%emt 0:00:00]} Bf3 {[%emt 0:00:50]} 60. Bb7 {[%emt 0:00:00]} Be4 {[%emt 0:00:17]} 61. Ba8 {[%emt 0:00:00]} Ke6 {[%emt 0:01:04]} 62. Bc6 {[%emt 0:00:00]} Kd6 {[%emt 0:00:01]} 63. Ba8 {[%emt 0:00:00]} Ke6 {[%emt 0:00:05] Weighted Error Value: White=0.03 (flawless) /Black=0.02 (flawless)   Inaccurate:     	White=1     	Black=1      OK:         	White=20    	Black=33     Best:        	---       	Black=2} 1/2-1/2

[Event "EICC 2025"]
[Site "Eforie-Nord"]
[Date "2025.03.17"]
[Round "3.22"]
[White "Subelj, Jan"]
[Black "Kochavi, Ori"]
[Result "1-0"]
[Annotator "RC"]
[ECO "A22"]
[WhiteElo "2524"]
[BlackElo "2357"]
[PlyCount "75"]
[EventDate "2025.03.14"]
[EventType "swiss"]
[EventCountry "ROU"]
[SourceTitle "playchess.com"]
[Source "ChessBase"]
[SourceQuality "1"]
[TimeControl "40/5400+30:1800+30"]

1. c4 {[%emt 0:00:14]} e5 {[%emt 0:01:13]} 2. Nc3 {[%emt 0:00:24]} Nf6 {[%emt 0:00:04]} 3. g3 {[%emt 0:00:20]} Bc5 {[%emt 0:05:48]} 4. Bg2 {[%emt 0:00:58]} O-O {[%emt 0:00:05]} 5. Nf3 {[%emt 0:05:45]} d6 {[%emt 0:01:29]} 6. d4 {[%emt 0:06:49]} exd4 {[%emt 0:01:19]} 7. Nxd4 {[%emt 0:00:09]} a6 {[%emt 0:06:35]} 8. O-O {[%emt 0:02:12]} Nbd7 {[%emt 0:02:24]} 9. b3 {[%emt 0:05:07]} Re8 {[%emt 0:02:19]} 10. Bb2 {[%emt 0:00:49]} Nf8 {[%emt 0:09:29]} 11. Qd2 {[%emt 0:07:52]} c6 {[%emt 0:09:06]} 12. Rad1 {[%emt 0:07:13]} Bd7 {[%emt 0:03:46]} 13. Rfe1 {[%emt 0:12:00]} b5 {[%emt 0:10:16]} 14. b4 {[%emt 0:05:08]} Bb6 {[%emt 0:06:06]} 15. Qf4 {[%emt 0:07:31]} Qc7 {[%emt 0:16:37]} 16. c5 {[%emt 0:03:43]} dxc5 {[%emt 0:00:03]} 17. Qxc7 {[%emt 0:00:10]} Bxc7 {[%emt 0:00:03]} 18. bxc5 {[%emt 0:00:16]} Rac8 {[%emt 0:08:17]} 19. Nxc6 {[%emt 0:01:35]} Bxg3 {[%emt 0:00:31]} 20. Na7 {[%emt 0:16:49]} Rxc5 {[%emt 0:00:39]} 21. hxg3 {[%emt 0:00:10]} Rc7 {[%emt 0:00:03]} 22. Rxd7 {[%emt 0:02:34]} N8xd7 {[%emt 0:06:04]} 23. Nc6 {[%emt 0:00:24]} Nc5 {[%emt 0:00:10]} 24. Rc1 {[%emt 0:04:13]} h6 {[%emt 0:01:43]} 25. Ba3 {[%emt 0:02:24]} Nce4 {[%emt 0:01:26]} 26. Bxe4 {[%emt 0:03:19]} Nxe4 {[%emt 0:00:21]} 27. Nd5 {[%emt 0:00:07]} Rd7 {[%emt 0:00:56]} 28. Nce7+ {[%emt 0:00:05]} Kh7 {[%emt 0:00:12]} 29. f3 {[%emt 0:05:14]} Nxg3 {[%emt 0:02:43]} 30. Rd1 {[%emt 0:00:04]} Kh8 {[%emt 0:02:31]} 31. Kf2 {[%emt 0:00:24]} Nh5 {[%emt 0:01:01]} 32. Rh1 {[%emt 0:00:16]} Nf6 {[%emt 0:02:27]} 33. Nxf6 {[%emt 0:00:56]} gxf6 {[%emt 0:00:02]} 34. Rxh6+ {[%emt 0:00:08]} Kg7 {[%emt 0:00:04]} 35. Nf5+ {[%emt 0:00:05]} Kg8 {[%emt 0:00:02]} 36. Bb4 {[%emt 0:01:53]} Rc7 {[%emt 0:00:32]} 37. e4 {[%emt 0:00:51]} Re6 {[%emt 0:00:03]} 38. a3 {[%emt 0:00:26]} 1-0

[Event "EICC 2025"]
[Site "Eforie-Nord"]
[Date "2025.03.17"]
[Round "3.22"]
[White "Trost, Edvin"]
[Black "Gorshtein, Ido"]
[Result "1/2-1/2"]
[Annotator "TA"]
[ECO "A60"]
[WhiteElo "2457"]
[BlackElo "2569"]
[PlyCount "78"]
[EventDate "2025.03.14"]
[EventType "swiss"]
[EventCountry "ROU"]
[SourceTitle "playchess.com"]
[Source "ChessBase"]
[SourceQuality "1"]
[TimeControl "40/5400+30:1800+30"]

{[%evp 9,78,18,42,27,18,0,12,2,26,14,21,12,29,25,43,40,28,22,22,10,35,46,47,44,44,40,33,37,31,26,28,28,34,36,35,21,27,23,26,25,27,17,24,0,8,-10,7,0,8,11,20,8,9,7,7,7,8,7,15,14,25,11,12,0,8,0,0,0,0,0,15]} 1. d4 {[%emt 0:00:04]} Nf6 {[%emt 0:00:07]} 2. c4 {[%emt 0:00:05]} e6 {[%emt 0:00:09]} 3. g3 {[%emt 0:00:06]} c5 {[%emt 0:01:21]} 4. d5 {[%emt 0:01:04]} exd5 {[%emt 0:00:07]} 5. cxd5 {[%emt 0:00:04]} d6 {[%emt 0:00:05]} 6. Nf3 {[%emt 0:00:25][%cal Bg1f3,Bf3d2,Bd2c4][%mdl 32] A60: Modern Benoni: Early Divergences.} g6 {[%emt 0:02:32]} 7. a4 {[%emt 0:00:31]} Bg7 {[%emt 0:00:38]} 8. Bg2 {[%emt 0:00:48]} O-O {[%emt 0:01:17]} 9. Nfd2 {[%emt 0:00:09]} b6 $146 {[%emt 0:14:11]} (9... Re8 10. O-O Nbd7 11. Na3 b6 12. h3 Bb7 13. e4 a6 14. Rb1 b5 15. axb5 axb5 16. Nxb5 {1-0 Petkov,M (2540)-Wafa,H (2368) Olympiad-45 Budapest 2024 (7.4)}) 10. Nc4 {[%emt 0:01:28]} Ba6 {[%emt 0:01:34]} 11. Nba3 {[%emt 0:00:26]} Qe7 {[%emt 0:06:16]} 12. O-O {[%emt 0:07:32]} Nbd7 {[%emt 0:02:00]} 13. Bf4 {[%emt 0:16:28]} Ne8 {[%emt 0:02:13]} 14. Qd2 {[%emt 0:02:37]} Bxc4 {[%emt 0:05:10]} 15. Nxc4 {[%emt 0:00:12]} Rd8 {[%emt 0:00:41]} 16. Rab1 {[%emt 0:10:05]} Ne5 {[%emt 0:05:31]} 17. Bxe5 {[%emt 0:06:43]} Bxe5 {[%emt 0:10:51]} 18. b4 {[%emt 0:03:55]} cxb4 {[%emt 0:00:27]} 19. Qxb4 {[%emt 0:05:59]} Bd4 {[%emt 0:01:09]} 20. Qd2 {[%emt 0:00:42]} Bc5 {[%emt 0:01:23]} 21. a5 {[%emt 0:00:27][%cal Ra5b6]} Qc7 {[%emt 0:12:37][%cal Oc5f2]} 22. Rfc1 {[%emt 0:04:35]} Nf6 {[%emt 0:01:36]} 23. e3 {[%emt 0:14:06]} Rb8 {[%emt 0:02:07]} 24. axb6 {[%emt 0:02:00]} axb6 {[%emt 0:00:08]} 25. Qb2 {[%emt 0:02:07]} Qe7 {[%emt 0:00:54]} 26. Ra1 {[%emt 0:02:48]} Rfe8 {[%emt 0:04:01]} 27. Ra2 {[%emt 0:09:03]} Ng4 {[%emt 0:02:59] [#] aiming for ...b5.} 28. Qb5 {[%emt 0:00:28]} h5 {[%emt 0:10:29]} (28... Nxe3 $2 29. Re2 $18 (29. fxe3 $2 {perishes.} Bxe3+ 30. Kh1 Bxc1 $19)) 29. h3 {[%emt 0:00:45]} Ne5 {[%emt 0:02:07]} ({Avoid the trap} 29... Nxe3 $2 30. Re1 $18) 30. Nxe5 {[%emt 0:00:06]} Qxe5 {[%emt 0:00:07] Black is weak on the light squares} 31. Rc4 {[%emt 0:00:07] White wants to play Re4.} Ra8 {[%emt 0:02:16]} 32. Rca4 {[%emt 0:01:33]} Rxa4 {[%emt 0:00:49]} 33. Rxa4 {[%emt 0:00:32][%cal Ba2a4,Ba4e4,Be4e7][%mdl 32]} Rc8 {[%emt 0:02:04][%cal Oc5e3]} 34. Re4 {[%emt 0:01:22]} Qa1+ {[%emt 0:00:14]} (34... Qxd5 35. Re8+ Kh7 36. Bxd5) 35. Bf1 {[%emt 0:00:18]} Ra8 {[%emt 0:00:51] The position is equal.} 36. Kg2 {[%emt 0:02:45]} Qd1 {[%emt 0:02:00]} 37. Qc4 {[%emt 0:04:35]} Qd2 {[%emt 0:02:37]} 38. Re7 {[%emt 0:01:39]} Kf8 {[%emt 0:01:10]} 39. Qe4 {[%emt 0:00:01]} Qb2 {[%emt 0:01:59] Weighted Error Value: White=0.06 (flawless) /Black=0.06 (flawless)   OK:         	White=13    	Black=16} 1/2-1/2

[Event "EICC 2025"]
[Site "Eforie-Nord"]
[Date "2025.03.17"]
[Round "3.23"]
[White "Kantor, Gergely"]
[Black "Mitsis, Georgios"]
[Result "1/2-1/2"]
[Annotator "TA"]
[ECO "C55"]
[WhiteElo "2563"]
[BlackElo "2376"]
[PlyCount "156"]
[EventDate "2025.03.14"]
[EventType "swiss"]
[EventCountry "ROU"]
[SourceTitle "playchess.com"]
[Source "ChessBase"]
[SourceQuality "1"]
[TimeControl "40/5400+30:1800+30"]

{[%evp 11,155,13,18,18,11,0,0,0,0,0,2,16,11,10,23,7,12,0,0,0,6,0,8,21,19,13,20,29,23,9,12,0,0,0,0,0,0,0,33,27,47,31,78,68,77,18,31,13,18,20,12,11,6,14,22,13,23,20,47,15,13,20,14,0,2,-15,18,17,40,16,44,45,93,72,81,90,250,252,238,239,249,-73,-76,-82,-72,-148,-148,-202,-87,-86,-60,-55,-54,-36,-52,-34,-34,-56,-2,-4,-8,-8,-8,-46,-43,-57,-31,-32,-32,-75,-31,-21,-31,-30,-22,-43,-23,-166,-11,-68,0,-168,-18,-141,-131,-253,-235,-274,-255,-706,-786,-767,-753,-713,-705,-591,-200,-193,-12,-12,-12,-12,0,0,0,-12]} 1. e4 {[%emt 0:00:03]} e5 {[%emt 0:00:29]} 2. Nf3 {[%emt 0:01:43]} Nc6 {[%emt 0:00:11]} 3. Bc4 {[%emt 0:01:09]} Nf6 {[%emt 0:00:10]} 4. d3 {[%emt 0:00:01]} Be7 {[%emt 0:00:17]} 5. O-O {[%emt 0:00:14]} O-O {[%emt 0:00:13]} 6. Nc3 {[%emt 0:00:08]} d6 {[%emt 0:00:21]} 7. a4 $1 {[%emt 0:00:06][%mdl 4] is currently scoring better than 7.h3. C55: Two Knights: 4 d3, 4 d4 exd4 5 e5 and Max Lange Attack.} Be6 {[%emt 0:01:45]} 8. Nd5 {[%emt 0:00:24]} Bxd5 {[%emt 0:00:20]} 9. exd5 {[%emt 0:00:14]} Nb4 {[%emt 0:00:11]} 10. d4 {[%emt 0:00:19]} Nbxd5 {[%emt 0:00:35]} 11. dxe5 {[%emt 0:00:43]} dxe5 {[%emt 0:00:08]} 12. Nxe5 {[%emt 0:00:19]} c6 {[%emt 0:00:11]} 13. Qf3 {[%emt 0:01:16]} Qc7 {[%emt 0:02:39]} 14. Nd3 {[%emt 0:02:32]} Bd6 {[%emt 0:07:01]} 15. g3 {[%emt 0:01:33]} Rae8 {[%emt 0:01:26]} 16. Rd1 $146 {[%emt 0:04:08]} (16. Bb3 a5 17. Bd2 Ne4 18. Rad1 Nxd2 19. Rxd2 Nf6 20. h4 Re7 21. Re1 Rxe1+ 22. Nxe1 {½-½ Kadric,D (2587)-Stojanovic,D (2464) Sarajevo Agentlocator rapid 2023 (8)}) 16... Nb6 {[%emt 0:39:07]} 17. Bb3 {[%emt 0:00:45]} Nbd7 {[%emt 0:01:56]} 18. Be3 {[%emt 0:02:59]} Ne4 {[%emt 0:05:25]} 19. Qf5 {[%emt 0:11:38]} (19. Bxa7 b6 20. Bxb6 (20. Re1 $2 Ndf6 $19) 20... Qxb6 $19) 19... b6 {[%emt 0:04:12]} 20. c3 {[%emt 0:06:23]} Re7 {[%emt 0:01:39]} 21. Bc2 {[%emt 0:05:08]} Rfe8 {[%emt 0:00:36]} 22. a5 {[%emt 0:08:09]} g6 {[%emt 0:03:48]} 23. axb6 {[%emt 0:02:28]} axb6 {[%emt 0:00:07]} 24. Qf3 {[%emt 0:03:12]} Re6 {[%emt 0:14:55]} 25. Ra2 {[%emt 0:05:30]} Nec5 {[%emt 0:00:59]} 26. Nf4 {[%emt 0:02:43]} Ne5 {[%emt 0:01:15]} (26... Bxf4 $14 {should be considered.} 27. Bxf4 (27. Qxf4 Qxf4 28. Bxf4 Nf6 $14) 27... Ne5) 27. Qe2 $16 {[%emt 0:04:17]} R6e7 {[%emt 0:00:34]} 28. Kg2 {[%emt 0:06:20]} (28. b4 $16 Ncd7 29. Bb3) 28... b5 $11 {[%emt 0:04:24]} 29. b3 {[%emt 0:05:12] Prevents Nc4.} (29. Nh5 {is more complex.} Ncd7 30. Bg5 gxh5 31. Qxh5 Ng6 32. Bxe7 Bxe7 33. Re1) 29... Ncd7 {[%emt 0:02:04]} 30. Qd2 {[%emt 0:10:51]} Bc5 {[%emt 0:00:12]} 31. Bxc5 {[%emt 0:01:25]} Nxc5 {[%emt 0:00:06]} 32. Qd4 {[%emt 0:00:07]} Nb7 {[%emt 0:03:32]} 33. Ra7 {[%emt 0:02:43]} Rd7 {[%emt 0:00:30]} 34. Qe3 {[%emt 0:00:27]} Rde7 {[%emt 0:00:10]} 35. Rda1 {[%emt 0:00:58]} Ng4 {[%emt 0:02:10]} 36. Qf3 {[%emt 0:03:51]} Ne5 {[%emt 0:00:08]} 37. Qd1 {[%emt 0:00:15]} Rd7 {[%emt 0:00:24]} 38. Qe2 {[%emt 0:00:41]} Rde7 {[%emt 0:00:28]} 39. h4 {[%emt 0:00:57]} Kg7 {[%emt 0:04:18]} 40. Qe3 {[%emt 0:01:44]} Kg8 {[%emt 0:00:52]} 41. Ra8 {[%emt 0:36:24]} Rxa8 {[%emt 0:07:07]} (41... Qd6 $14) 42. Rxa8+ $16 {[%emt 0:00:00] White attacks} Kg7 {[%emt 0:00:10]} 43. h5 {[%emt 0:00:00][%cal Oh5h6] White has more active pieces.} Ng4 {[%emt 0:01:07] [#]} (43... Nd8 $16) 44. h6+ $1 $18 {[%emt 0:00:00][%mdl 512]} Kxh6 {[%emt 0:11:59]} 45. Qc1 {[%emt 0:00:00] Ne6+ would kill now.} Qe5 {[%emt 0:01:33]} (45... Kg7 46. Nh5+ gxh5 47. Qg5#) 46. Rg8 {[%emt 0:00:00]} (46. Nxg6+ Ne3+ 47. Qxe3+ Qxe3 48. fxe3 hxg6 $16 (48... fxg6 49. Kf3 $11)) (46. Nd5+ $18 Kg7 47. Nxe7 Qxe7 48. Qf4) 46... Qe1 $1 $17 {[%emt 0:01:33]} 47. Qxe1 {[%emt 0:04:01]} Rxe1 {[%emt 0:00:06]} 48. Nd3 {[%emt 0:00:00] Inhibits Rc1.} (48. Ra8 $142) 48... Re2 {[%emt 0:02:51]} 49. Bb1 {[%emt 0:00:00]} (49. Bd1 $17 Rd2 50. Bxg4 Rxd3 51. Rb8) 49... f5 {[%emt 0:00:18]} (49... Rd2 $1 $19 50. Re8 Nd6) 50. Kf1 {[%emt 0:00:00]} Re6 {[%emt 0:00:27]} 51. Rc8 {[%emt 0:00:00]} Rd6 {[%emt 0:01:06]} 52. Ke2 {[%emt 0:00:00]} Nd8 {[%emt 0:00:34]} 53. f3 {[%emt 0:00:00]} Nf6 {[%emt 0:00:04]} 54. Ne5 {[%emt 0:00:00][%cal Oc8d8]} Nd5 {[%emt 0:03:07]} (54... Kg7 $1 $15 55. Kf2 Nd5) 55. Bd3 $11 {[%emt 0:00:00][%cal Oc8d8] Hoping for Rxd8!.} Kg7 {[%emt 0:00:36][%cal Og7f6]} 56. c4 {[%emt 0:00:04]} bxc4 {[%emt 0:00:06]} 57. bxc4 {[%emt 0:00:39]} Ne7 {[%emt 0:00:29]} 58. Ra8 {[%emt 0:01:43]} Nf7 {[%emt 0:00:18]} 59. Nxf7 {[%emt 0:00:41]} Kxf7 $15 {[%emt 0:00:05][%mdl 4096] Endgame KRB-KRN. Black is a pawn up.} 60. c5 {[%emt 0:00:30]} Re6+ {[%emt 0:00:54]} 61. Kd2 {[%emt 0:00:21]} Re5 {[%emt 0:00:04]} 62. Bc4+ {[%emt 0:00:30]} Kg7 {[%emt 0:00:17]} 63. Re8 {[%emt 0:00:30]} g5 {[%emt 0:01:30][%cal Of5f4]} 64. Kd3 {[%emt 0:02:56]} (64. f4 $11 gxf4 65. gxf4) 64... Ng6 $2 {[%emt 0:01:27]} (64... h5 $1 $19 {[%cal Oh5h4]} 65. Kd4 Re1) 65. Rc8 {[%emt 0:00:19]} ({White should try} 65. Rg8+ $11 Kf6 66. Kd4) 65... Ne7 {[%emt 0:02:31]} ({Black should try} 65... h5 $1 $15 66. Kd4 Re1 67. Rxc6 h4 68. Rc7+ Kh6 69. gxh4 gxh4) 66. Rc7 $2 {[%emt 0:00:29]} (66. Re8 $1 $11 {and White has nothing to worry.}) 66... f4 {[%emt 0:00:11]} (66... h5 $1 $19 {[%cal Oh5h4]} 67. Rd7 f4) 67. gxf4 {[%emt 0:00:13]} (67. Kd4 $1 $11 Kf6 68. gxf4 gxf4 69. Bd3) 67... gxf4 $17 {[%emt 0:00:05][%cal Og7f6]} 68. Kd4 {[%emt 0:00:50]} (68. Rd7 $17 {might work better.}) 68... Kf6 $19 {[%emt 0:00:08]} 69. Bd3 {[%emt 0:00:07] [#]} h5 $1 {[%emt 0:00:08]} 70. Be4 $2 {[%emt 0:00:54]} (70. Rd7 Rd5+ 71. Rxd5 Nxd5 72. Ke4) 70... h4 {[%emt 0:00:07]} 71. Ra7 {[%emt 0:00:39]} h3 {[%emt 0:00:16]} 72. Ra2 {[%emt 0:00:09]} Rh5 {[%emt 0:01:05]} 73. Rh2 {[%emt 0:00:14]} Nf5+ $2 {[%emt 0:03:48]} (73... Kg5 74. Ke5 Kh4+ 75. Kd6 Kg3) 74. Kd3 {[%emt 0:00:24] [#]} Ng3 $2 {[%emt 0:00:43]} (74... Ng7 $1 $19 {and ...Kg5 should not be overlooked} 75. Ke2 Ne6 (75... Rxc5 76. Rxh3 Ne6 77. Rh6+ Ke7 78. Rh7+ Kd6 79. Rh6 $15)) 75. Bxc6 $11 {[%emt 0:00:07] The position is equal.} Nf1 {[%emt 0:00:48]} 76. Rh1 {[%emt 0:00:13]} Ng3 {[%emt 0:00:28]} (76... Rxc5 77. Rxf1 Rxc6 78. Rh1) 77. Rh2 $1 {[%emt 0:00:04]} Nf1 {[%emt 0:00:33]} 78. Rh1 {[%emt 0:00:04]} Ng3 {[%emt 0:00:29] What a bad dream for Black.   Weighted Error Value: White=0.16 (very precise) /Black=0.16 (very precise)   Loses game:     	White=1     	---        Missed win:     	White=1     	Black=1      Mistake:       	White=8     	Black=8      Inaccurate:     	White=3     	Black=7      OK:         	White=31    	Black=22     Best:        	White=3     	Black=4      Strong:       	White=1     	Black=2} (78... Rxc5 79. Rxh3 Ng3 80. Rh6+ Kg5 81. Re6) 1/2-1/2